bitfinex-derivatives/quotes_ETHF0:USTF0_20251001
["timestamp","ask_amount","ask_price","bid_price","bid_amount"]
[1759307313796,0.319,4163.6,4162.8,3.7827]
[1759307314094,0.319,4164.0,4163.5,0.4322]
[1759307314300,0.319,4164.0,4163.9,3.5337]
[1759307314597,0.00306969,4164.0,4163.9,3.78567525]
[1759307314809,0.00306969,4164.0,4163.9,3.53667525]
[1759307315103,0.32206969,4164.0,4163.9,3.21077525]
[1759307315401,0.0008,4164.9,4163.9,8.53667525]
[1759307315587,0.319,4165.9,4164.8,3.5337]
[1759307315794,3.3357,4166.0,4164.8,3.2078]
[1759307315995,0.4469,4165.0,4164.9,0.252]
[1759307316291,0.1279,4166.0,4165.4,0.432]
[1759307316491,0.319,4165.9,4165.6,0.3259]
[1759307316694,0.319,4165.9,4165.4,3.2078]
[1759307316695,0.319,4165.9,4165.7,0.253]
[1759307317001,0.319,4165.9,4165.8,0.253]
[1759307317300,0.00176323,4166.0,4165.9,0.3259]
[1759307317489,0.00176323,4166.0,4165.9,3.5337]
[1759307318594,0.00176323,4166.0,4165.9,3.96566]
[1759307318799,0.32076323,4166.0,4165.9,3.4608]
[1759307318999,0.00176323,4166.0,4165.9,4.21866]
[1759307319504,0.00176323,4166.0,4165.9,3.7867]
[1759307319702,0.00176323,4166.0,4165.9,3.5337]
[1759307319899,0.32076323,4166.0,4165.9,3.4608]
[1759307320700,0.00176323,4166.0,4165.9,3.7867]
[1759307321995,0.43182,4167.3,4166.8,0.3259]
[1759307322191,0.43182,4167.3,4167.1,0.3259]
[1759307322192,0.75082,4167.3,4167.1,0.3259]
[1759307322400,0.75082,4167.3,4167.2,0.5789]
[1759307322701,0.319,4167.3,4167.2,0.253]
[1759307323107,0.320896,4167.3,4167.2,0.2548124]
[1759307323402,5.33161763,4167.3,4167.2,0.0018124]
[1759307323797,0.1279,4166.5,4166.3,3.2078]
[1759307323997,0.1279,4166.5,4165.8,3.2078]
[1759307324200,0.4584086,4166.2,4165.9,0.5789]
[1759307324398,0.43194,4166.1,4165.9,0.5789]
[1759307324599,0.319,4166.0,4165.9,0.3259]
[1759307324901,0.75096,4165.9,4165.8,3.2078]
[1759307325102,0.319,4166.1,4165.8,3.53635335]
[1759307325402,3.2078,4166.4,4165.8,3.53635335]
[1759307325403,0.319,4165.9,4165.8,3.21045335]
[1759307325601,0.319,4165.9,4165.8,3.46345335]
[1759307325800,0.319,4165.9,4165.8,3.21045335]
[1759307326000,0.319,4165.9,4165.8,3.46345335]
[1759307326196,0.3454786,4165.9,4165.8,3.46345335]
[1759307326505,0.0264786,4165.9,4165.8,3.78935335]
[1759307326803,0.0264786,4165.9,4165.8,8.78935335]
[1759307328801,0.3454786,4165.9,4165.8,3.21045335]
[1759307329002,0.3454786,4165.9,4165.8,3.46345335]
[1759307329203,0.3454786,4165.9,4165.8,3.21045335]
[1759307329598,0.3454786,4165.9,4165.8,3.46345335]
[1759307329797,0.0264786,4165.9,4165.8,3.78935335]
[1759307330397,0.04366484,4165.9,4165.8,3.78935335]
[1759307331099,0.04366484,4165.9,4165.8,4.22132335]
[1759307331305,3.2078,4167.1,4166.7,0.3259]
[1759307331507,0.01578684,4166.9,4166.8,0.5789]
[1759307331809,0.319,4166.6,4166.5,3.2078]
[1759307332004,0.319,4166.6,4166.5,3.4608]
[1759307332304,0.319,4166.6,4166.5,0.253]
[1759307332506,0.76667684,4166.6,4166.5,0.253]
[1759307332694,0.43195,4166.1,4165.9,3.2078]
[1759307332896,0.4469,4166.0,4165.9,3.2078]
[1759307333102,0.319,4166.2,4165.9,3.4608]
[1759307333299,0.74854,4166.1,4165.9,3.4608]
[1759307333507,0.74856,4165.9,4165.8,0.00265335]
[1759307333704,0.74856,4165.9,4165.8,0.25565335]
[1759307333705,0.3166,4165.9,4165.8,0.25565335]
[1759307334503,0.33238684,4165.9,4165.8,0.25565335]
[1759307334702,0.01578684,4165.9,4165.8,3.78315335]
[1759307336007,3.2078,4167.0,4165.8,8.46345335]
[1759307336197,0.74842,4167.2,4166.9,0.3197]
[1759307336392,0.3166,4167.2,4167.0,0.253]
[1759307336605,3.63959,4167.6,4167.1,0.3197]
[1759307336801,0.43178,4167.6,4167.2,3.5275]
[1759307336997,0.43179,4167.5,4167.2,3.5275]
[1759307337307,0.33206984,4167.3,4167.2,3.2078]
[1759307337695,0.01546984,4167.3,4167.2,3.7805]
[1759307338204,0.34564368,4167.3,4167.2,3.2078]
[1759307338405,0.02904368,4167.3,4167.2,3.7805]
[1759307339204,0.03486908,4167.3,4167.2,3.7805]
[1759307343304,0.52212362,4167.3,4167.2,3.7805]
[1759307343902,0.52212362,4167.3,4167.2,3.7795]
[1759307344210,0.83872362,4167.3,4167.2,3.7795]
[1759307344405,0.83872362,4167.3,4167.2,3.2078]
[1759307344704,0.83872362,4167.3,4167.2,3.4598]
[1759307345703,0.52297263,4167.3,4167.2,3.7795]
[1759307346610,0.022,4167.9,4167.8,0.75146]
[1759307346905,0.43164,4169.0,4168.4,0.3197]
[1759307347106,0.3166,4168.8,4168.7,3.2078]
[1759307347508,0.1338,4168.5,4167.9,3.2078]
[1759307347707,0.43171,4168.3,4168.0,0.253]
[1759307348011,0.3166,4168.4,4168.0,0.5727]
[1759307348306,0.3166,4168.4,4168.0,0.43174]
[1759307348512,0.3166,4168.4,4168.2,0.3197]
[1759307348705,0.00260085,4168.8,4168.4,0.3197]
[1759307348706,0.3166,4168.6,4168.4,0.3197]
[1759307348911,0.74828,4168.6,4168.5,0.253]
[1759307349214,0.4504,4168.5,4168.4,3.2078]
[1759307349512,0.74834,4168.0,4167.9,3.2078]
[1759307349707,0.74834,4168.0,4167.9,3.4608]
[1759307349912,0.88214,4168.0,4167.9,3.2078]
[1759307350113,0.1338,4168.0,4167.9,0.253]
[1759307350310,0.43178,4167.7,4167.4,0.7515]
[1759307350509,0.1338,4168.0,4167.5,0.253]
[1759307350510,0.43179,4167.6,4167.5,0.253]
[1759307350711,0.3166,4168.4,4167.8,0.3197]
[1759307350918,0.43427085,4168.8,4168.3,3.63951]
[1759307351109,0.43427085,4168.8,4168.5,0.3197]
[1759307351110,0.43169,4168.6,4168.5,0.3197]
[1759307351415,0.1338,4168.5,4167.8,3.5275]
[1759307351615,0.3166,4168.4,4167.9,0.254]
[1759307351920,0.74833,4168.2,4168.0,0.68574]
[1759307352719,0.74833,4168.2,4168.0,0.5737]
[1759307353108,0.3166,4168.2,4168.0,0.68574]
[1759307353314,0.43171,4168.3,4168.0,0.68574]
[1759307353514,0.43171,4168.3,4168.1,0.3197]
[1759307353709,0.7483,4168.4,4168.2,0.5727]
[1759307353909,0.3166,4168.3,4168.2,0.253]
[1759307354212,0.3166,4168.3,4167.9,0.3197]
[1759307354423,0.3166,4168.7,4168.0,0.253]
[1759307354623,0.43172,4168.3,4168.0,0.68473]
[1759307354826,0.3166,4167.9,4167.8,3.2078]
[1759307355024,0.3166,4167.9,4167.8,3.4608]
[1759307355226,0.3166,4167.9,4167.8,3.2078]
[1759307355430,0.3166,4167.9,4167.8,3.4608]
[1759307355823,0.3166,4167.9,4167.8,3.2078]
[1759307356025,0.3166,4167.9,4167.8,3.4608]
[1759307357733,0.3166,4167.9,4167.8,3.2078]
[1759307357932,0.3166,4167.9,4167.8,3.4608]
[1759307359129,0.1338,4168.0,4167.3,0.43181]
[1759307359325,0.3274,4167.9,4167.4,0.253]
[1759307359525,0.7592,4167.4,4167.3,0.43181]
[1759307359740,0.7592,4167.4,4167.3,1.00041]
[1759307360041,0.3274,4167.4,4167.3,1.00041]
[1759307360434,0.7592,4167.4,4167.2,3.2078]
[1759307360626,0.1312,4167.5,4167.2,3.2078]
[1759307360627,0.1312,4167.5,4167.4,0.4318]
[1759307360836,0.3274,4167.5,4167.4,0.6848]
[1759307361042,0.75919,4167.5,4167.4,0.6848]
[1759307361236,0.75919,4167.5,4167.4,0.253]
[1759307362036,0.3274,4167.5,4167.4,0.6848]
[1759307362339,0.75921,4167.3,4167.2,3.2078]
[1759307362540,0.75921,4167.3,4167.2,3.4608]
[1759307362740,0.75921,4167.3,4167.2,3.7764]
[1759307363335,0.75921,4167.3,4167.2,3.4608]
[1759307363531,0.43187,4166.8,4166.7,3.5215]
[1759307363735,0.75927,4166.8,4166.7,3.4598]
[1759307364238,0.75927,4166.8,4166.1,0.43194]
[1759307364239,0.43192,4166.3,4166.2,3.2078]
[1759307364447,0.75932,4166.3,4166.2,3.4598]
[1759307364636,0.1287,4167.0,4166.4,0.4319]
[1759307364939,0.43191,4166.5,4166.3,0.43192]
[1759307365144,0.75931,4166.5,4166.4,0.252]
[1759307365744,0.43192,4166.3,4166.2,3.2078]
[1759307365945,0.75932,4166.3,4166.2,3.4598]
[1759307366243,0.1287,4167.0,4166.4,0.4319]
[1759307366544,1.19189,4166.6,4166.5,0.4619]
[1759307366743,0.3274,4166.6,4166.5,1.4275]
[1759307366934,0.3274,4167.6,4167.5,0.43179]
[1759307367142,0.3274,4167.8,4167.5,0.68379]
[1759307367336,0.75917,4167.7,4167.6,0.3137]
[1759307367534,0.75917,4167.7,4167.6,0.5657]
[1759307367735,0.88789,4167.5,4167.4,3.2078]
[1759307367931,0.88789,4167.5,4167.4,3.4598]
[1759307368845,0.88789,4167.5,4167.4,3.2078]
[1759307369151,0.88789,4167.5,4167.4,3.4598]
[1759307370342,0.88789,4167.5,4167.4,3.2078]
[1759307370548,0.75924,4167.0,4166.9,0.43185]
[1759307370741,0.75921,4167.3,4167.1,0.43183]
[1759307370936,0.75921,4167.3,4167.2,0.252]
[1759307371340,0.96931,4167.3,4167.2,0.4619]
[1759307371742,0.3274,4167.9,4167.5,0.43179]
[1759307371942,0.75917,4167.8,4167.7,0.2099]
[1759307372139,0.96927,4167.8,4167.7,0.2099]
[1759307372733,1.19177,4167.8,4167.7,0.2099]
[1759307372946,0.43178,4167.6,4167.5,0.252]
[1759307373146,0.2101,4167.4,4167.3,0.95541]
[1759307373342,1.1918,4167.4,4167.3,0.64171]
[1759307373649,1.1918,4167.4,4167.3,0.43181]
[1759307373850,1.1918,4167.4,4167.3,0.68381]
[1759307374150,1.1918,4167.4,4167.3,0.252]
[1759307374441,1.1918,4167.4,4167.3,0.43181]
[1759307374642,0.5375,4166.9,4166.8,0.43186]
[1759307374843,1.19186,4166.9,4166.8,0.2099]
[1759307375046,0.75926,4166.9,4166.8,0.9956]
[1759307375456,0.3274,4166.9,4166.8,1.42747]
[1759307375945,0.96936,4166.9,4166.8,0.9956]
[1759307376247,0.96936,4166.9,4166.8,0.6819]
[1759307376455,0.43187,4166.8,4166.7,3.2078]
[1759307376642,1.19187,4166.8,4166.7,3.4598]
[1759307376950,1.19187,4166.8,4166.7,3.2078]
[1759307377150,0.76,4166.8,4166.7,4.32158]
[1759307377350,0.76,4166.8,4166.7,4.63528]
[1759307377553,1.19187,4166.8,4166.7,4.63528]
[1759307377850,1.19187,4166.8,4166.7,3.8897]
[1759307378543,1.19187,4166.8,4166.7,3.4588]
[1759307379453,1.19187,4166.8,4166.7,3.2078]
[1759307379949,0.4326,4166.4,4166.3,0.2099]
[1759307380149,1.19191,4166.4,4166.3,0.4609]
[1759307380450,0.96937,4166.9,4166.8,0.4299]
[1759307380751,0.96936,4166.9,4166.8,1.17547]
[1759307380944,0.96936,4166.9,4166.8,0.7436]
[1759307381148,1.19186,4166.9,4166.8,0.4299]
[1759307381449,1.19186,4166.9,4166.8,0.2099]
[1759307382352,0.43186,4166.8,4166.7,0.251]
[1759307382549,0.76,4166.3,4166.2,3.2078]
[1759307382748,0.6662,4166.5,4166.4,1.17551]
[1759307383052,0.5375,4166.5,4166.4,1.17551]
[1759307383352,0.9694,4166.5,4166.4,1.17551]
[1759307383547,0.5375,4166.5,4166.4,1.17551]
[1759307383851,0.9694,4166.5,4166.4,0.7436]
[1759307384041,0.9694,4166.5,4166.4,0.9956]
[1759307384451,0.9694,4166.5,4166.4,1.42751]
[1759307384754,1.3206,4166.5,4166.4,0.4619]
[1759307385758,0.8887,4166.5,4166.4,0.89381]
[1759307386053,0.43192,4166.3,4166.2,3.2078]
[1759307386254,1.19192,4166.3,4166.2,3.4588]
[1759307386648,0.76,4166.3,4166.2,3.63973]
[1759307386850,0.96937,4166.8,4166.7,0.4299]
[1759307387052,1.19187,4166.8,4166.7,3.6377]
[1759307388355,1.19187,4166.8,4166.7,4.06958]
[1759307388553,0.5375,4166.8,4166.7,4.63428]
[1759307388751,0.96935,4166.9,4166.8,0.7436]
[1759307388949,0.1287,4167.5,4166.8,0.4299]
[1759307389258,0.5375,4167.3,4167.2,3.9514]
[1759307389451,0.5375,4167.3,4167.2,4.2024]
[1759307389649,0.76,4167.3,4167.2,3.8887]
[1759307391360,0.76,4167.3,4167.2,4.2024]
[1759307392056,0.5375,4167.3,4167.2,4.2024]
[1759307392561,0.2101,4167.6,4167.5,1.17539]
[1759307392748,0.5375,4167.6,4167.5,1.42639]
[1759307392950,0.76,4167.6,4167.5,0.6809]
[1759307393661,1.00684,4168.0,4167.9,0.2218]
[1759307393850,1.00684,4168.0,4167.9,0.4396]
[1759307394351,1.33524,4168.0,4167.9,0.4396]
[1759307396653,0.7697,4168.0,4167.9,0.7535]
[1759307397056,0.9724,4168.4,4168.3,0.4396]
[1759307397356,1.2014,4168.4,4168.3,0.2218]
[1759307398357,0.7697,4168.4,4168.3,0.4396]
[1759307398549,3.2078,4168.6,4168.5,1.18519]
[1759307398550,0.2123,4168.6,4168.5,1.18519]
[1759307398753,0.5407,4168.6,4168.5,0.7535]
[1759307399158,0.7697,4168.6,4168.5,0.7535]
[1759307399863,0.7697,4168.6,4168.5,0.4396]
[1759307400054,0.7697,4168.6,4168.5,0.2218]
[1759307400961,0.7697,4168.6,4168.5,0.4396]
[1759307401160,0.7697,4168.6,4168.5,0.7535]
[1759307401556,0.00260085,4168.8,4168.7,0.2218]
[1759307401759,0.00260085,4168.8,4168.7,3.9613]
[1759307402159,0.00260085,4168.8,4168.7,4.2113]
[1759307403663,0.2123,4169.5,4169.4,1.1851]
[1759307403851,0.3284,4170.2,4170.1,0.2218]
[1759307404162,1.20122,4170.2,4170.1,0.4396]
[1759307404760,0.77206773,4170.2,4170.1,0.44192121]
[1759307405062,0.77206773,4170.2,4170.1,0.00232121]
[1759307405960,0.77206773,4170.2,4170.1,0.22412121]
[1759307406564,0.77206773,4170.2,4170.1,0.44192121]
[1759307406767,0.77206773,4170.2,4170.1,0.75582121]
[1759307406971,0.77206773,4170.2,4170.1,0.44192121]
[1759307407563,1.20357773,4170.2,4170.1,0.44192121]
[1759307408269,1.20357773,4170.2,4170.1,0.00232121]
[1759307408460,6.20357773,4170.2,4170.1,0.00232121]
[1759307409166,0.87289,4169.4,4169.3,3.4296]
[1759307409364,1.20129,4169.4,4169.3,3.6796]
[1759307409760,1.20129,4169.4,4169.3,3.2078]
[1759307409959,1.20129,4169.4,4169.3,3.4296]
[1759307410164,0.7697,4169.4,4169.3,3.86289813]
[1759307410366,0.3284,4169.9,4169.3,3.20948813]
[1759307410669,0.7697,4169.9,4169.8,0.4396]
[1759307410865,1.20125,4169.9,4169.8,0.4718]
[1759307411079,0.43158,4169.7,4169.6,0.2218]
[1759307411371,0.137,4170.0,4169.9,0.87115]
[1759307411372,0.6777,4170.0,4169.9,0.87115]
[1759307411668,0.6777,4170.0,4169.9,1.18505]
[1759307412059,0.5407,4170.0,4169.9,1.18505]
[1759307412456,1.20124,4170.0,4169.9,0.87115]
[1759307412663,0.9067,4170.0,4169.9,0.87115]
[1759307412971,1.33824,4170.0,4169.9,0.65335]
[1759307413170,0.9067,4170.0,4169.9,0.65335]
[1759307413568,0.9067,4170.0,4169.9,0.87115]
[1759307413764,0.9067,4170.0,4169.9,4.32995]
[1759307413960,0.7697,4170.0,4169.9,4.64385]
[1759307414161,0.00236773,4170.2,4170.1,0.4396]
[1759307414362,0.00236773,4170.2,4170.1,0.7535]
[1759307414567,0.00236773,4170.2,4170.1,1.18503]
[1759307414768,0.54306773,4170.2,4170.1,1.43503]
[1759307415072,0.00236773,4170.2,4170.1,1.43503]
[1759307415370,0.00236773,4170.2,4170.1,6.43503]
[1759307417268,0.00236773,4170.2,4170.1,6.18503]
[1759307417470,3.2078,4171.4,4171.2,0.4314]
[1759307417666,0.7697,4171.7,4171.6,0.2218]
[1759307418081,3.2078,4171.9,4171.2,3.4296]
[1759307418082,0.4413,4171.3,4171.2,3.4296]
[1759307418279,0.7697,4171.3,4171.2,3.6796]
[1759307418463,0.5407,4170.6,4170.5,44.3217]
[1759307418777,0.5407,4171.2,4171.1,0.96312]
[1759307419069,0.229,4170.6,4170.5,0.2218]
[1759307419262,0.137,4170.5,4170.4,0.2218]
[1759307419573,0.3493,4170.5,4170.4,0.4396]
[1759307419771,0.5407,4170.5,4170.4,0.7535]
[1759307420070,0.5407,4170.5,4170.4,0.4396]
[1759307420276,0.5407,4170.5,4170.4,0.7535]
[1759307420472,0.7697,4171.1,4171.0,0.2218]
[1759307420662,0.3284,4171.1,4170.5,0.3139]
[1759307420974,1.20116,4170.7,4170.6,0.6916]
[1759307421168,0.97215,4170.9,4170.8,0.4396]
[1759307421373,0.2123,4170.7,4170.6,0.2218]
[1759307421571,4.28845801,4171.3,4170.7,0.3139]
[1759307421572,0.00213801,4171.3,4170.7,0.3139]
[1759307421875,0.00213801,4171.3,4171.2,0.7535]
[1759307421876,0.54283801,4171.3,4171.2,0.7535]
[1759307422077,0.00213801,4171.3,4171.2,1.0055]
[1759307422879,0.00213801,4171.3,4171.2,0.7535]
[1759307423072,0.54543801,4171.3,4171.2,1.0055]
[1759307423382,0.00213801,4171.3,4171.2,1.0055]
[1759307423566,0.00213801,4171.3,4171.2,0.5659]
[1759307424072,0.00213801,4171.3,4171.2,5.5659]
[1759307424573,0.3412,4172.7,4172.2,0.3223]
[1759307424779,3.2078,4172.8,4172.3,0.68329]
[1759307424976,0.3412,4172.7,4172.5,0.3223]
[1759307425173,3.2078,4172.8,4172.0,3.3301]
[1759307425367,0.3412,4172.5,4172.3,0.43129]
[1759307425567,3.20994322,4172.8,4172.4,0.252]
[1759307425865,0.3412,4172.7,4172.6,0.3223]
[1759307426070,3.20994322,4172.8,4172.6,0.3223]
[1759307426071,0.00214322,4172.8,4172.7,0.3223]
[1759307426665,0.00214322,4172.8,4172.7,5.75356]
[1759307426873,0.4704,4174.0,4173.3,0.43119]
[1759307427076,0.90153,4174.0,4173.5,0.3223]
[1759307427280,0.3412,4173.6,4173.4,3.2078]
[1759307427576,0.4704,4173.5,4172.5,0.3223]
[1759307427772,0.3412,4172.7,4172.5,0.3223]
[1759307427971,3.2078,4173.0,4172.6,0.252]
[1759307428171,0.00180008,4173.5,4173.1,0.3223]
[1759307428377,0.00180008,4173.5,4173.3,0.3223]
[1759307428584,0.34300008,4173.5,4173.3,0.3223]
[1759307428775,0.34300008,4173.5,4173.2,0.252]
[1759307429082,0.7724,4173.3,4173.2,0.253]
[1759307429378,0.3412,4173.3,4173.2,0.253]
[1759307429570,0.00180008,4173.5,4173.2,0.253]
[1759307429774,0.00180008,4173.5,4173.4,0.3223]
[1759307430080,3.549,4175.4,4174.0,0.1223]
[1759307430381,0.431,4175.3,4174.6,0.3223]
[1759307430570,3.549,4175.4,4174.7,0.253]
[1759307430774,3.549,4175.4,4174.8,0.3223]
[1759307430974,0.43102,4175.0,4174.4,3.2078]
[1759307431169,0.3412,4174.8,4174.5,0.253]
[1759307431575,0.3412,4175.3,4174.6,0.3223]
[1759307431876,3.21039975,4175.4,4175.3,0.3223]
[1759307432173,3.2078,4175.9,4175.3,0.57755039]
[1759307432379,3.2078,4176.4,4175.8,0.3223]
[1759307432579,3.2078,4176.4,4176.1,0.3223]
[1759307432778,0.3412,4176.3,4176.2,0.254]
[1759307433277,0.3412,4176.2,4175.1,0.3223]
[1759307433483,0.3412,4175.6,4175.0,0.3223]
[1759307433680,0.43097,4175.5,4175.4,0.254]
[1759307433880,0.3412,4175.4,4174.8,3.2078]
[1759307434079,0.3412,4175.4,4174.5,0.3223]
[1759307434281,0.3412,4175.4,4175.2,0.254]
[1759307434585,0.3412,4175.4,4175.0,0.254]
[1759307434887,0.4311,4174.2,4173.7,0.3223]
[1759307435083,0.77234,4173.9,4173.6,0.3223]
[1759307435384,0.3412,4173.8,4173.1,0.3223]
[1759307435590,3.2078,4173.9,4173.3,0.3223]
[1759307435780,0.3412,4175.4,4174.4,0.3223]
[1759307436082,3.2078,4175.5,4175.1,0.3223]
[1759307436285,3.55143305,4176.3,4175.4,3.5301]
[1759307436582,0.43092,4176.0,4175.5,0.254]
[1759307436788,0.1292,4176.0,4175.5,0.5763]
[1759307436977,0.3412,4175.9,4175.5,0.254]
[1759307437179,0.3412,4175.8,4175.5,0.254]
[1759307437377,0.3412,4175.8,4175.1,40.8]
[1759307437378,3.549,4175.8,4175.6,0.254]
[1759307437688,0.3412,4176.2,4175.7,0.254]
[1759307437881,0.3412,4176.2,4175.8,0.254]
[1759307438284,3.21023305,4176.3,4176.2,0.3223]
[1759307438785,0.00243305,4176.3,4176.2,0.3223]
[1759307438994,3.2078,4177.3,4176.9,0.43082]
[1759307439186,3.549,4177.3,4177.0,1.00711]
[1759307439385,3.549,4177.3,4177.1,0.3223]
[1759307439688,0.1292,4177.0,4176.9,0.254]
[1759307439991,0.47303852,4177.0,4176.9,0.254]
[1759307440180,0.34383852,4177.0,4176.9,0.254]
[1759307440583,0.3412,4176.9,4176.6,0.75315]
[1759307440787,0.3412,4176.9,4176.7,0.254]
[1759307441181,0.3412,4176.9,4176.4,3.2078]
[1759307441381,0.3412,4176.7,4176.5,0.254]
[1759307441582,0.34383852,4177.0,4176.6,0.3223]
[1759307441884,0.3412,4176.9,4176.7,0.3223]
[1759307442085,0.3412,4176.9,4176.5,0.254]
[1759307442086,0.00263852,4177.0,4176.8,0.3223]
[1759307442286,0.00263852,4177.0,4176.9,0.3223]
[1759307442584,3.2078,4177.8,4177.4,0.43077]
[1759307442792,0.3412,4177.7,4177.0,0.3223]
[1759307442984,0.3412,4177.7,4177.1,0.6848]
[1759307443180,0.254,4178.8,4177.2,1.39929]
[1759307443181,3.2078,4178.3,4177.2,1.39929]
[1759307443386,3.2078,4178.3,4177.8,0.3223]
[1759307443585,0.3412,4177.8,4177.0,0.18855566]
[1759307443891,1.20601,4178.0,4176.5,40.933]
[1759307443892,0.3412,4176.9,4176.5,40.933]
[1759307444188,0.00248437,4176.9,4176.5,41.05597422]
[1759307444381,0.00248437,4176.9,4176.8,0.3223]
[1759307444788,3.2078,4177.7,4177.3,0.3223]
[1759307444996,0.3412,4177.6,4176.8,0.3223]
[1759307445190,0.3412,4177.6,4176.5,40.92297422]
[1759307445191,0.1292,4177.0,4176.5,0.00297422]
[1759307445492,0.3412,4176.2,4175.4,3.2078]
[1759307445795,0.4704,4177.5,4176.2,0.3223]
[1759307445996,0.4704,4177.5,4176.9,0.3223]
[1759307446295,0.1292,4177.5,4177.0,0.256]
[1759307446587,0.00235159,4177.5,4177.4,0.3223]
[1759307447191,0.77197,4177.4,4177.0,0.00279565]
[1759307447385,3.2078,4177.3,4177.1,0.256]
[1759307447582,0.772,4177.1,4177.0,0.00279565]
[1759307447986,0.3412,4177.1,4177.0,0.00279565]
[1759307448689,0.77207,4176.4,4176.3,0.256]
[1759307448992,0.1292,4177.0,4176.3,0.256]
[1759307448993,3.2078,4176.6,4176.3,0.256]
[1759307449196,0.00235159,4177.5,4177.1,0.3223]
[1759307449389,0.00235159,4177.5,4177.2,0.256]
[1759307449591,0.00235159,4177.5,4177.4,0.3223]
[1759307449784,0.00235159,4177.5,4177.3,3.2078]
[1759307449986,0.00235159,4177.5,4177.4,0.256]
[1759307450286,0.00235159,4177.5,4177.1,41.55309]
[1759307450492,0.00235159,4177.5,4177.4,0.5783]
[1759307450688,0.34355159,4177.5,4177.4,0.256]
[1759307451193,0.00235159,4177.5,4177.1,41.1223]
[1759307451387,0.3412,4177.1,4177.0,0.00280098]
[1759307452196,3.2078,4177.3,4177.0,0.00280098]
[1759307452400,0.3412,4177.2,4177.0,0.00280098]
[1759307452697,0.77199,4177.2,4177.0,0.00280098]
[1759307452894,0.3412,4177.1,4177.0,0.00280098]
[1759307453088,3.2078,4177.3,4177.0,0.00280098]
[1759307453293,0.00235159,4177.5,4177.2,0.77429]
[1759307453496,0.00235159,4177.5,4177.3,1.03027]
[1759307453802,0.3226,4177.4,4177.3,0.256]
[1759307454196,0.00235159,4177.5,4177.0,0.00280098]
[1759307454391,0.00235159,4177.5,4177.2,0.3435]
[1759307454591,0.13095159,4177.5,4177.0,0.00280098]
[1759307454891,0.3226,4177.4,4177.0,0.00280098]
[1759307455092,3.5304,4177.1,4177.0,0.00280098]
[1759307456399,0.13095159,4177.5,4177.0,0.25980098]
[1759307456589,0.00235159,4177.5,4177.4,0.3435]
[1759307457900,0.00235159,4177.5,4177.4,0.257]
[1759307458093,0.00235159,4177.5,4177.4,0.6005]
[1759307458697,0.00235159,4177.5,4177.4,0.257]
[1759307458899,0.00235159,4177.5,4177.4,0.6005]
[1759307459297,3.2078,4178.3,4178.2,0.43068]
[1759307459495,3.63843,4178.8,4178.2,0.257]
[1759307459696,0.1286,4178.5,4178.3,0.257]
[1759307459897,0.3226,4178.4,4178.3,0.257]
[1759307460099,3.2078,4178.8,4178.3,0.6005]
[1759307460293,0.3226,4178.7,4178.3,0.257]
[1759307460501,0.32891762,4179.3,4179.2,0.43058]
[1759307460698,1.25269651,4181.1,4179.9,10.76277]
[1759307460898,1.25269651,4181.1,4179.3,11.10786]
[1759307460899,0.1286,4182.5,4182.2,0.43027]
[1759307461102,0.1286,4183.5,4182.2,0.43027]
[1759307461103,0.1286,4183.5,4182.4,3.2078]
[1759307461402,0.1286,4184.5,4184.2,0.43006]
[1759307461601,0.1286,4184.5,4183.2,10.75432]
[1759307461602,0.1286,4185.0,4184.9,0.42999]
[1759307461900,0.1286,4185.6,4184.9,1.25133926]
[1759307462100,0.1286,4185.6,4185.5,3.2078]
[1759307462306,3.67377918,4185.5,4185.1,3.2078]
[1759307462503,0.0020312,4185.5,4185.1,0.00184271]
[1759307462698,3.99637918,4185.2,4185.1,4.271e-05]
[1759307462898,3.99637918,4185.4,4185.1,4.271e-05]
[1759307463116,0.0020312,4185.5,4185.3,0.62328469]
[1759307463315,0.0020312,4185.5,4185.4,0.32463058]
[1759307463516,0.3246312,4185.5,4185.4,0.32463058]
[1759307463715,0.3246312,4185.5,4185.1,3.63781271]
[1759307463716,11.88361038,4185.5,4185.1,4.271e-05]
[1759307463914,3.67377918,4185.2,4185.1,4.271e-05]
[1759307464114,3.67377918,4185.2,4185.1,0.32382407]
[1759307464307,1.2e-06,4185.6,4185.5,0.42993]
[1759307464509,3.2078,4187.3,4185.9,0.42988]
[1759307464510,0.3226,4186.1,4185.9,0.42988]
[1759307464708,0.3226,4186.1,4185.1,38.46210846]
[1759307464709,3.2078,4187.8,4186.0,3.80966949]
[1759307465014,0.1286,4187.4,4186.6,44.0078]
[1759307465209,0.1286,4187.4,4186.7,0.32286949]
[1759307465411,0.56101408,4187.4,4186.8,0.32286949]
[1759307465716,5.0,4187.3,4186.9,0.32286949]
[1759307466019,5.0,4187.3,4185.1,3.48984271]
[1759307466020,0.1286,4186.2,4185.1,3.48984271]
[1759307466222,3.2078,4186.3,4186.0,0.42988]
[1759307466515,0.13127408,4187.4,4186.7,0.3435]
[1759307466516,0.00267408,4187.4,4186.7,0.3435]
[1759307466817,3.2078,4188.0,4187.0,3.2078]
[1759307467017,0.1286,4191.6,4188.4,0.3435]
[1759307467018,3.2078,4190.0,4188.4,0.3435]
[1759307467217,8.24,4190.0,4189.4,3.63733]
[1759307467520,0.3226,4190.2,4189.4,3.2078]
[1759307467711,10.3926,4190.2,4189.4,3.2078]
[1759307468020,10.3926,4190.2,4188.9,3.2078]
[1759307468021,0.3226,4189.4,4188.9,3.2078]
[1759307468319,0.42962,4188.6,4188.0,3.2078]
[1759307468510,0.3226,4188.7,4188.0,3.2078]
[1759307468707,0.3226,4188.1,4187.6,0.285]